Cogmind - Beta 13 @@@ ROGUE MODE // 2024.03.26 @ 22:38:08 Player: f_ Result: Destroyed by G-34 Mercenary with Small Laser Performance ------------- Evolutions (1) 500 Regions Visited (3) 600 Robots Destroyed (38) 190 Value Destroyed (888) 888 Prototype IDs (4) 80 Alien Tech Used (0) 0 Bonus (0) 0 TOTAL SCORE: 2258 Bonus ------- None Cogmind --------- Core Integrity 0/400 Matter 290/300 Energy 125/125 System Corruption 11% Temperature Cool (6) Movement Treading (320) Ox2 Location -9/Materials Parts ------- > --- POWER (1) -------- Light Ion Engine > --- PROPULSION (2) --- Light Treads > --- UTILITY (4) ------ High-capacity Storage Unit Signal Interpreter Hacking Suite Hacking Suite > --- WEAPON (2) ------- Hammer > --- INVENTORY (20) --- Light Ion Engine Backup Power I Medium Armor Plating Assault Rifle Datajack Peak State ------------ > --- POWER ------------ Ion Engine > --- PROPULSION ------- Wheel Wheel > --- UTILITY ---------- High-capacity Storage Unit Hardened Light Armor Plating Hardened Light Armor Plating Hardened Light Armor Plating > --- WEAPON ----------- EM Pulse Gun Beam Cannon > --- INVENTORY -------- Light Ion Engine Signal Interpreter Hacking Suite Hacking Suite Medium Laser Assault Rifle Datajack [Rating: 13] Favorites ----------- Power Ion Engine Engine Ion Engine Propulsion Wheel Treads Light Treads Wheel Wheel Utility High-capacity Storage Unit Storage High-capacity Storage Unit Processor Signal Interpreter Hackware Hacking Suite Protection Hardened Light Armor Plating Weapon Improved Light Cannon Energy Gun Medium Laser Energy Cannon Beam Cannon Ballistic Gun Assault Rifle Ballistic Cannon Improved Light Cannon Impact Weapon Hammer Build | -11 -10 -10 -9 ------- Run | Yrd Mat Min Mat Slots Evolved 2 | . . . 2 Power . | . . . . Propulsion . | . . . . Utility 2 | . . . 2 Weapon . | . . . . Parts Attached 27 | 6 5 1 15 Power 2 | 1 . . 1 Engine 2 | 1 . . 1 Core . | . . . . Reactor . | . . . . Propulsion 5 | 2 . . 3 Treads 3 | . . . 3 Leg . | . . . . Wheel 2 | 2 . . . Hover . | . . . . Flight . | . . . . Utility 9 | 1 2 . 6 Device . | . . . . Storage 2 | 1 1 . . Processor 1 | . . . 1 Hackware 2 | . . . 2 Protection 4 | . 1 . 3 Artifact . | . . . . Weapon 11 | 2 3 1 5 Energy Gun 5 | 1 1 . 3 Energy Cannon 1 | . . 1 . Ballistic Gun 2 | 1 . . 1 Ballistic Cannon 2 | . 2 . . Launcher . | . . . . Special Weapon . | . . . . Impact Weapon 1 | . . . 1 Slashing Weapon . | . . . . Piercing Weapon . | . . . . Special Melee Weapon . | . . . . Unidentified Prototypes . | . . . . Corrupted Parts 1 | . . . 1 System Corruption 11 | . . . 11 Parts Lost 13 | . . 3 10 Power 1 | . . . 1 Propulsion 4 | . . . 4 Utility 4 | . . 1 3 Weapon 4 | . . 2 2 Highest Loss Streak 4 | . . 2 4 To Critical Strikes . | . . . . Average Slot Usage (%) 88 | . 99 93 74 Engine 9 | . 14 14 1 Treads 3 | . . . 10 Wheel 18 | . 28 28 2 Storage 12 | . 14 14 11 Processor 1 | . . . 4 Hackware 5 | . . . 14 Protection 11 | . 13 9 10 Energy Gun 3 | . . . 8 Energy Cannon 2 | . . 4 2 Ballistic Gun 1 | . . . 2 Ballistic Cannon 15 | . 26 22 . Impact Weapon 2 | . . . 7 Naked Turns . | . . . . Heaviest Build 65 | 14 58 58 65 Greatest Support 40 | 20 20 20 40 Greatest Overweight (x) 16 | . 2 2 16 Average Overweight (x) 2 | . 1 2 3 Largest Inventory Capacity 20 | 8 20 20 20 Average Capacity 19 | 7 18 20 20 Most Carried 11 | 3 10 11 10 Average Carried 7 | . 7 9 5 Final Capacity 20 | 8 20 20 20 Final Carried 11 | 1 10 11 5 Class Distribution -------------------- 76% | Mutant 18% | Scavenger-Mutant 4% | Hacker-Mutant Dominant Class ---------------- Mutant | -10/Materials Mutant | -10/Mines Scavenger-Mutant | -9/Materials Resources | -11 -10 -10 -9 ----------- Run | Yrd Mat Min Mat Matter Collected 855 | 160 374 99 222 Remotely . | . . . . Salvage Created 980 | . 341 72 567 Parts 63 | . 30 10 23 Haulers Intercepted 2 | . 2 . . Recyclers Shooed 1 | . 1 . . Parts Field Recycled . | . . . . Retrieved Matter . | . . . . Parts Self-Destructed . | . . . . Prevented . | . . . . Kills | -11 -10 -10 -9 ------- Run | Yrd Mat Min Mat Combat Hostiles Destroyed 29 | . 9 9 11 Melee 1 | . . . 1 Guns 4 | . . . 4 Cannons 21 | . 9 9 3 Classes Destroyed 10 | . 4 1 5 Worker 1 | . . . 1 Hauler 2 | . 2 . . Recycler 1 | . . . 1 Mechanic 1 | . . . 1 Operator 2 | . 2 . . Watcher 2 | . 1 . 1 Swarmer 12 | . . 9 3 Grunt 12 | . 9 . 3 Brawler 1 | . . . 1 Sentry 4 | . . . 4 Best Kill Streak 6 | . 4 3 6 Combat Bots Only 6 | . 4 3 6 Max Kills in Single Turn 2 | . 2 1 1 Gunslinging . | . . . . Exploded . | . . . . Melee 1 | . . . 1 Uniques/NPCs Destroyed . | . . . . Combat | -11 -10 -10 -9 -------- Run | Yrd Mat Min Mat Hostile Shots Fired 241 | . 29 68 144 Missed 50 | . 9 12 29 Damage Taken 2296 | . 251 448 1597 Core 504 | . . 100 404 Absorbed by Shields . | . . . . Core Remaining (%) 80 | 100 . 60 . Volleys Fired 86 | . 28 29 29 Largest 2 | . 2 2 2 Hottest 100 | . 78 78 100 Shots Fired 141 | . 56 42 43 Gun 22 | . . . 22 Cannon 119 | . 56 42 21 Launcher . | . . . . Special . | . . . . Kinetic 99 | . 56 26 17 Thermal 38 | . . 16 22 Explosive . | . . . . Electromagnetic 4 | . . . 4 Robot Hit Streak 11 | . 7 11 5 Robot Miss Streak 8 | . 2 2 8 Penetration Max . | . . . . Secondary Targets . | . . . . Shots Hit Robots 104 | . 34 23 47 Core Hits 40 | . 17 9 14 Critical Kills . | . . . . Critical Parts Destroyed 5 | . . . 5 Critical Strikes 7 | . 1 1 5 Blast 2 | . 1 1 . Smash 5 | . . . 5 Melee Attacks 26 | . . . 26 Impact 26 | . . . 26 Slashing . | . . . . Piercing . | . . . . Sneak Attacks 4 | . . . 4 Combat Hostiles . | . . . . Follow-up Attacks . | . . . . Damage Inflicted 2214 | . 724 469 1021 Guns 177 | . . . 177 Cannons 1438 | . 724 469 245 Explosions . | . . . . Melee 599 | . . . 599 Ramming . | . . . . Kinetic 1212 | . 724 311 177 Thermal 403 | . . 158 245 Explosive . | . . . . Electromagnetic . | . . . . Impact 599 | . . . 599 Slashing . | . . . . Piercing . | . . . . Highest Corruption 11 | . . . 11 Average Corruption 11 | . . . 11 Corruption Purged . | . . . . Corruption Blocked . | . . . . Effects 1 | . . . 1 Message Errors 1 | . . . 1 Overload Shots . | . . . . Overflow Damage 242 | . . 24 218 Projectiles 24 | . . 24 . Explosions . | . . . . Melee 218 | . . . 218 Knockbacks 18 | . 13 5 . Impact . | . . . . Kinetic 14 | . 10 4 . Secondary 4 | . 3 1 . Self-Inflicted Damage . | . . . . Shots . | . . . . Rammed . | . . . . Targets Rammed . | . . . . Kicked . | . . . . Crushed . | . . . . Highest Temperature 638 | . 357 277 638 Average Temperature 149 | . 87 116 243 Received Heat Transfer 504 | . 141 . 363 Effects 10 | . . 1 9 Energy Bleed 1 | . . . 1 Interference 3 | . . 1 2 Matter Decay 2 | . . . 2 Short Circuit 1 | . . . 1 Damage (minor) 1 | . . . 1 Damage (core) 2 | . . . 2 Siege Activations . | . . . . Robots Corrupted . | . . . . Combat Hostiles . | . . . . Parts Fried 7 | . . . 7 Impact Corruptions 10 | . . . 10 Robots Melted . | . . . . Combat Hostiles . | . . . . Parts Melted 2 | . . 1 1 Heat Transferred 851 | . . 333 518 Parts Sabotaged . | . . . . Parts Stolen . | . . . . Parts Stripped . | . . . . Power Chain Reactions . | . . . . Alert | -11 -10 -10 -9 ------- Run | Yrd Mat Min Mat Peak Influence 319 | . 319 189 250 Initial 69 | . . 69 23 Average 116 | . 161 94 102 Maximum Alert Level 1 | . 1 . 1 Low Security (%) 87 | 100 67 100 92 Level 1 12 | . 32 . 7 Level 2 . | . . . . Level 3 . | . . . . Level 4 . | . . . . Level 5 . | . . . . High Security . | . . . . Max Security . | . . . . Squads Dispatched 4 | . 3 . 1 Investigation 2 | . 1 . 1 Extermination . | . . . . Reinforcement 2 | . 2 . . Assault . | . . . . Garrison . | . . . . Intercept . | . . . . Searches Triggered . | . . . . Construction Impeded . | . . . . Haulers Reinforced . | . . . . Active Scanning Responses . | . . . . Cargo Convoy Interrupts . | . . . . Stealth | -11 -10 -10 -9 --------- Run | Yrd Mat Min Mat Distress Signals 4 | . 1 . 3 Communications Jammed . | . . . . Distress Signals . | . . . . Times Spotted 42 | . 16 9 17 Peak Tracking Total 9 | . 4 3 9 Tactical Retreats 2 | . 1 . 1 Traps | -11 -10 -10 -9 ------- Run | Yrd Mat Min Mat Traps Triggered 3 | . 2 . 1 Indirectly . | . . . . Trap Hack Attempts . | . . . . Triggered . | . . . . Disarmed . | . . . . Reprogrammed . | . . . . Reused . | . . . . Traps Extracted . | . . . . Installed . | . . . . Triggered . | . . . . Machines | -11 -10 -10 -9 ---------- Run | Yrd Mat Min Mat Machines Disabled 3 | . 3 . . Max in Single Turn 1 | . 1 . . Machines Repaired . | . . . . Machines Dismantled . | . . . . Machines Sabotaged . | . . . . Overloaded Fab Kills . | . . . . Hacking | -11 -10 -10 -9 --------- Run | Yrd Mat Min Mat Machines Accessed 7 | . 5 . 2 Terminals 6 | . 5 . 1 Fabricators . | . . . . Repair Stations . | . . . . Recycling Units 1 | . . . 1 Scanalyzers . | . . . . Garrison Access . | . . . . Total Hacks 15 | . 11 . 4 Successful 9 | . 5 . 4 Failed 6 | . 6 . . Catastrophic 1 | . 1 . . Database Lockouts . | . . . . Manual . | . . . . Terminals 13 | . 11 . 2 Fabricators . | . . . . Repair Stations . | . . . . Recycling Units 2 | . . . 2 Scanalyzers . | . . . . Garrison Access . | . . . . Terminal Hacks 7 | . 5 . 2 Prototype ID Bank 3 | . 3 . . Level Access Points 1 | . 1 . . Alert Level 2 | . 1 . 1 Unreport Threat 1 | . . . 1 Fabricator Hacks . | . . . . Repair Station Hacks . | . . . . Recycling Unit Hacks 2 | . . . 2 Report Inventory 1 | . . . 1 Retrieve Components 1 | . . . 1 Scanalyzer . | . . . . Garrison Access Hacks . | . . . . Unauthorized Hacks . | . . . . Terminals . | . . . . Fabricators . | . . . . Repair Stations . | . . . . Recycling Units . | . . . . Scanalyzers . | . . . . Garrison Access . | . . . . Data Cores Recovered . | . . . . Used . | . . . . Hacking Detections 4 | . 3 . 1 Full Trace Events 1 | . 1 . . Feedback Events . | . . . . Feedback Blocked . | . . . . Robot Schematics Acquired . | . . . . Robots Built . | . . . . Authchips . | . . . . Time . | . . . . Total Robot Build Rating . | . . . . Part Schematics Acquired . | . . . . Parts Built . | . . . . Authchips . | . . . . Time . | . . . . Total Part Build Rating . | . . . . Parts Repaired . | . . . . Time . | . . . . Parts Recycled . | . . . . Recycled Matter . | . . . . Retrieved Matter . | . . . . Retrieved Components 10 | . . . 10 Parts Scanalyzed . | . . . . Part Schematics Acquired . | . . . . Parts Damaged . | . . . . Bothacking | -11 -10 -10 -9 ------------ Run | Yrd Mat Min Mat Used RIF Installer . | . . . . Robots Hacked . | . . . . Non-combat . | . . . . Combat . | . . . . Robot Hacks Applied . | . . . . Relay Couplers Released . | . . . . Fabnet Peak Effective % . | . . . . Robots Rewired . | . . . . Allies Hacked . | . . . . Hacks Repelled . | . . . . Allies | -11 -10 -10 -9 -------- Run | Yrd Mat Min Mat Total Allies . | . . . . Largest Group . | . . . . Highest-Rated Group . | . . . . Highest-Rated Ally . | . . . . Total Orders . | . . . . Ally Attacks . | . . . . Total Damage . | . . . . Kills . | . . . . Allies Corrupted . | . . . . Allies Melted . | . . . . Intel | -11 -10 -10 -9 ------- Run | Yrd Mat Min Mat Robot Analysis Total . | . . . . Derelict Logs Recovered 1 | . . 1 . Drone Launches . | . . . . Drone Recoveries . | . . . . Exploration | -11 -10 -10 -9 ------------- Run | Yrd Mat Min Mat Turns Passed 1651 | 38 517 506 590 Spaces Moved 919 | 33 371 388 127 Core 20 | 5 . . 15 Treads 78 | . . . 78 Legs . | . . . . Wheels 821 | 28 371 388 34 Hover . | . . . . Flight . | . . . . Fastest Speed 50 | 50 80 110 110 Average Speed 132 | 75 107 110 289 Slowest Speed 850 | 80 110 110 850 Overloaded Moves . | . . . . Propulsion Burnouts . | . . . . Robots Hopped . | . . . . Cave-ins Triggered . | . . . . Exploration Rate (%) 40 | 3 68 80 10 Regions Visited 3 Branch Regions 1 Pre-discovered Areas . | . . . . Known Exits Taken 1 | . . 1 . Unknown Exits Taken 2 | 1 1 . . Scrap Searched 1 | . . 1 . Spaces Dug . | . . . . Terrain Destroyed 4 | . 4 . . Melee . | . . . . Projectile 4 | . 4 . . AOE . | . . . . Terrain Rammed . | . . . . Walls Destroyed . | . . . . Machines Disabled . | . . . . Actions | -11 -10 -10 -9 --------- Run | Yrd Mat Min Mat Total 1165 | 45 433 425 262 Wait 80 | . 17 6 57 Move 916 | 32 370 387 127 Hop . | . . . . Pick Up 28 | 7 12 2 7 Fast Attach . | . . . . Attach 21 | 6 2 1 12 Detach . | . . . . Swap 6 | . 3 . 3 Drop 2 | . 1 . 1 Fire 86 | . 28 29 29 Melee 26 | . . . 26 Ram . | . . . . Kick . | . . . . Crush . | . . . . Escape Stasis . | . . . . Rewire . | . . . . Trap . | . . . . Miscellaneous . | . . . . Route ------- -11/Scrapyard -10/Materials (discovered 4 exits: *Mat x3 / [*Min]) -10/Mines -9/Materials (discovered 1 exit: [*Sto]) History --------- Turn | Location | Event 26 | -11/Scrapyard | Discovered new exit (range 15) 39 | -11/Scrapyard | Entered Materials 243 | -10/Materials | Discovered new exit (range 12) 316 | -10/Materials | Build established: Mutant 388 | -10/Materials | Discovered new exit (range 3) 468 | -10/Materials | Identified exit to Materials 531 | -10/Materials | Discovered new exit (range 14) 556 | -10/Materials | Entered Mines 581 | -10/Mines | Met a Derelict bent on vengeance 964 | -10/Mines | Learned Materials interactive machine intel 1011 | -10/Mines | Discovered exit to Materials (range 8) 1062 | -10/Mines | Entered Materials 1062 | -9/Materials | Evolved 2 slots: Utility x2 1063 | -9/Materials | Loaded intel: 18 interactive machine locations 1166 | -9/Materials | Lost 4 parts (1p2n1w) 1180 | -9/Materials | Core integrity fell below 50% 1527 | -9/Materials | Discovered new exit (range 16) 1577 | -9/Materials | Core integrity fell below 20% 1614 | -9/Materials | System corruption reached 10% 1625 | -9/Materials | Lost 3 parts (2n1w) 1634 | -9/Materials | Build established: Scavenger-Mutant 1652 | -9/Materials | Destroyed by G-34 Mercenary with Small Laser Last Messages --------------- 01594_ Fusion Modulator explodes. 01594_ Y-45 Defender system terminally corrupted. 01594_ Repair Station disabled. 01594_ Backup Power I tumbles out of repair station. 01594_ Terminal disabled. 01594_ Backup Laser I tumbles out of repair station. 01594_ Lgt. Treads destroyed. 01597_ Acquired 10 matter. 01612_ Acquired Corrupted Lgt. Treads. 01613_ Integrated Corrupted Lgt. Treads (+11). 01624_ Acquired Backup Power I. 01631_ Acquired Med. Armor Plating. 01637_ PAY>ZAVDUGXJEMWSA2U0MF>WR1